Cogmind - Beta 15 @@@ ROGUE MODE // 2025.07.16 @ 04:25:22 Player: Inverisimilidude Result: Self-destructed Performance ------------- Evolutions (1) 500 Regions Visited (3) 600 Robots Destroyed (17) 85 Value Destroyed (342) 342 Prototype IDs (1) 20 Alien Tech Used (0) 0 Bonus (0) 0 TOTAL SCORE: 1547 Bonus ------- None Cogmind --------- Core Integrity 353/400 Matter 250/300 Energy 250/250 System Corruption 0% Temperature Cool (0) Movement Treading (240) Ox1 Location -9/Materials Parts ------- > --- POWER (1) -------- Ion Engine > --- PROPULSION (3) --- Light Treads > --- UTILITY (3) ------ Medium Storage Unit Seismic Detector > --- WEAPON (2) ------- Medium Laser Rocket Launcher > --- INVENTORY (10) --- Heat Sink Large Storage Unit Faulty Experimental Sensor Array ECM Suite Light Armor Plating Small Laser Small Laser Mini Grenade Launcher Mining Laser Peak State ------------ > --- POWER ------------ Light Ion Engine > --- PROPULSION ------- Wheel Compact Wheel > --- UTILITY ---------- Small Storage Unit Experimental Sensor Array > --- WEAPON ----------- Medium Laser Small Laser > --- INVENTORY -------- Ion Engine Wheel Seismic Detector ECM Suite Light Armor Plating Small Laser Mining Laser [Rating: 15] Favorites ----------- Power Light Ion Engine Engine Light Ion Engine Propulsion Compact Wheel Treads Light Treads Wheel Compact Wheel Utility Small Storage Unit Device Seismic Detector Storage Small Storage Unit Weapon Medium Laser Energy Gun Medium Laser Launcher Mini Grenade Launcher Build | -11 -10 -10 -9 ------- Run | Yrd Mat Min Mat Slots Evolved 2 | . . . 2 Power . | . . . . Propulsion 1 | . . . 1 Utility 1 | . . . 1 Weapon . | . . . . Parts Attached 16 | 6 1 2 7 Power 2 | 1 . . 1 Engine 2 | 1 . . 1 Core . | . . . . Reactor . | . . . . Propulsion 5 | 2 . . 3 Treads 1 | . . . 1 Leg . | . . . . Wheel 4 | 2 . . 2 Hover . | . . . . Flight . | . . . . Utility 5 | 1 1 2 1 Device 3 | . 1 2 . Storage 2 | 1 . . 1 Processor . | . . . . Hackware . | . . . . Protection . | . . . . Artifact . | . . . . Weapon 4 | 2 . . 2 Energy Gun 2 | 2 . . . Energy Cannon . | . . . . Ballistic Gun . | . . . . Ballistic Cannon . | . . . . Launcher 2 | . . . 2 Special Weapon . | . . . . Impact Weapon . | . . . . Slashing Weapon . | . . . . Piercing Weapon . | . . . . Special Melee Weapon . | . . . . Unidentified Prototypes 1 | . . 1 . Parts Lost 3 | . . . 3 Power . | . . . . Propulsion 3 | . . . 3 Utility . | . . . . Weapon . | . . . . Highest Loss Streak 2 | . . . 2 To Critical Strikes . | . . . . Average Backups 5 | . 2 6 8 Power . | . 1 1 . Propulsion . | . . . . Utility 2 | . . 2 4 Weapon 2 | . 1 1 3 Tool/Special . | . . . . Unused Backups 5 | . . . 5 Power . | . . . . Propulsion . | . . . . Utility 3 | . . . 3 Weapon 2 | . . . 2 Tool/Special . | . . . . Average Slot Usage (%) 91 | . 95 100 74 Engine 13 | . 14 14 11 Wheel 24 | . 28 28 16 Device 12 | . 9 14 11 Storage 13 | . 14 14 11 Energy Gun 24 | . 28 28 17 Launcher 1 | . . . 4 Peak Build Rating 15 | 6 7 15 10 Average Rating 7 | 4 6 7 8 On Entrance 5 | . 6 7 8 Naked Turns . | . . . . Heaviest Build 22 | 11 13 13 22 Greatest Support 42 | 26 26 26 42 Greatest Overweight (x) 6 | . . . 6 Average Overweight (x) . | . . . . Largest Inventory Capacity 10 | 8 8 8 10 Average Capacity 8 | 7 8 8 9 Most Carried 9 | 2 3 7 9 Average Carried 6 | . 2 6 8 Final Capacity 10 | 8 8 8 10 Final Carried 9 | 2 3 7 9 Class Distribution -------------------- 100% | Mutant Dominant Class ---------------- Mutant | -10/Materials Mutant | -10/Mines Mutant | -9/Materials Resources | -11 -10 -10 -9 ----------- Run | Yrd Mat Min Mat Matter Collected 395 | 248 . 45 102 Remotely . | . . . . Salvage Created 366 | . . 92 274 Parts 30 | . . 9 21 Haulers Intercepted 1 | . . . 1 Recyclers Shooed 1 | . . . 1 Parts Field Recycled . | . . . . Retrieved Matter . | . . . . Parts Self-Destructed . | . . . . Prevented . | . . . . Kills | -11 -10 -10 -9 ------- Run | Yrd Mat Min Mat Combat Hostiles Destroyed 13 | . . 3 10 Guns 8 | . . 3 5 AOE 5 | . . . 5 Classes Destroyed 5 | . . 2 3 Tunneler 3 | . . 3 . Hauler 1 | . . . 1 Swarmer 6 | . . 3 3 Grunt 6 | . . . 6 Sentry 1 | . . . 1 Best Kill Streak 6 | . . 3 6 Combat Bots Only 5 | . . 3 5 Max Kills in Single Turn 4 | . . 2 4 Gunslinging 1 | . . 1 . Exploded 2 | . . . 2 Melee . | . . . . Uniques/NPCs Destroyed . | . . . . Combat | -11 -10 -10 -9 -------- Run | Yrd Mat Min Mat Hostile Shots Fired 59 | . 1 11 47 Missed 23 | . . 4 19 Hits 36 | . 1 7 28 Projectile 36 | . 1 7 28 Critical Strikes 1 | . . . 1 Damage Taken 405 | . 11 58 336 Core 58 | . 11 . 47 Absorbed by Shields . | . . . . Core Remaining (%) 97 | 100 . 95 . Volleys Fired 27 | . 1 8 18 Largest 2 | . 2 2 2 Hottest 90 | . 90 90 90 Shots Fired 51 | . 2 15 34 Gun 44 | . 2 15 27 Cannon . | . . . . Launcher 7 | . . . 7 Special . | . . . . Kinetic . | . . . . Thermal 44 | . 2 15 27 Explosive 7 | . . . 7 Electromagnetic . | . . . . Robot Hit Streak 8 | . . 6 8 Robot Miss Streak 2 | . 2 1 2 Penetration Max . | . . . . Secondary Targets 1 | . . 1 . Max Gunslinging Chain 1 | . . 1 . Shots Hit Robots 33 | . . 12 21 Core Hits 25 | . . 6 19 Critical Kills . | . . . . Critical Parts Destroyed . | . . . . Critical Strikes 1 | . . . 1 Burn 1 | . . . 1 Melee Attacks . | . . . . Impact . | . . . . Slashing . | . . . . Piercing . | . . . . Sneak Attacks . | . . . . Combat Hostiles . | . . . . Follow-up Attacks . | . . . . Damage Inflicted 744 | . . 140 604 Guns 370 | . . 140 230 Cannons . | . . . . Explosions 374 | . . . 374 Melee . | . . . . Ramming . | . . . . Kinetic . | . . . . Thermal 370 | . . 140 230 Explosive 374 | . . . 374 Electromagnetic . | . . . . Impact . | . . . . Slashing . | . . . . Piercing . | . . . . Highest Corruption 4 | . . 4 . Average Corruption 4 | . . 4 . Corruption Purged . | . . . . Corruption Blocked . | . . . . Effects 4 | . . 4 . Message Errors 1 | . . 1 . Matter Fused 1 | . . 1 . Energy Discharges 1 | . . 1 . Weapon Failures 1 | . . 1 . Overload Shots . | . . . . Overflow Damage 19 | . . . 19 Projectiles . | . . . . Explosions 19 | . . . 19 Melee . | . . . . Knockbacks . | . . . . Impact . | . . . . Kinetic . | . . . . Secondary . | . . . . Self-Inflicted Damage 24 | . . . 24 Shots 1 | . . . 1 Rammed . | . . . . Targets Rammed . | . . . . Kicked . | . . . . Crushed . | . . . . Highest Temperature 120 | . 30 120 81 Average Temperature 36 | . 17 44 33 Received Heat Transfer 129 | . 6 . 123 Siege Activations . | . . . . Martial Activations . | . . . . Shielding Activations . | . . . . Robots Disrupted . | . . . . Combat Hostiles . | . . . . Robots Corrupted . | . . . . Combat Hostiles . | . . . . Parts Fried . | . . . . Impact Corruptions . | . . . . Robots Melted . | . . . . Combat Hostiles . | . . . . Parts Melted 2 | . . 1 1 Heat Transferred 1077 | . . 384 693 Parts Sabotaged . | . . . . Parts Stolen . | . . . . Parts Stripped . | . . . . Power Chain Reactions . | . . . . Alert | -11 -10 -10 -9 ------- Run | Yrd Mat Min Mat Maximum Alert Level 1 | . . . 1 Low Security (%) 98 | 100 100 100 94 Level 1 1 | . . . 5 Level 2 . | . . . . Level 3 . | . . . . Level 4 . | . . . . Level 5 . | . . . . High Security . | . . . . Max Security . | . . . . Peak Influence 211 | . . 70 211 Initial 23 | . . . 23 Average 31 | . . 3 104 Influence Increases 383 | . . 85 298 Destroy 0b10 Robot/C 260 | . . 60 200 Destroy 0b10 Robot/NC 20 | . . 15 5 Destroy Leader 52 | . . 10 42 Disable Machine 15 | . . . 15 Destroy Structure 36 | . . . 36 Influence Decreases 182 | . . 25 157 Entered New Map 37 | . . . 37 Time Decay 115 | . . 25 90 Lost Part 30 | . . . 30 Squads Dispatched 3 | . 1 . 2 Investigation 1 | . . . 1 Extermination . | . . . . Reinforcement 2 | . 1 . 1 Assault . | . . . . Garrison . | . . . . Intercept . | . . . . Searches Triggered . | . . . . Construction Impeded . | . . . . Haulers Reinforced . | . . . . Active Scanning Responses . | . . . . Cargo Convoy Interrupts . | . . . . Stealth | -11 -10 -10 -9 --------- Run | Yrd Mat Min Mat Distress Signals . | . . . . Communications Jammed . | . . . . Distress Signals . | . . . . Times Spotted 20 | . 2 7 11 Peak Tracking Total 5 | . 1 5 5 Tactical Retreats 1 | . . 1 . Traps | -11 -10 -10 -9 ------- Run | Yrd Mat Min Mat Traps Triggered 1 | . . . 1 Indirectly . | . . . . Trap Hack Attempts . | . . . . Triggered . | . . . . Disarmed . | . . . . Reprogrammed . | . . . . Reused . | . . . . Traps Extracted . | . . . . Installed . | . . . . Triggered . | . . . . Machines | -11 -10 -10 -9 ---------- Run | Yrd Mat Min Mat Machines Disabled 1 | . . . 1 Max in Single Turn 1 | . . . 1 Machines Repaired . | . . . . Machines Dismantled . | . . . . Machines Sabotaged . | . . . . Overloaded Fab Kills . | . . . . Hacking | -11 -10 -10 -9 --------- Run | Yrd Mat Min Mat Machines Accessed . | . . . . Terminals . | . . . . Fabricators . | . . . . Repair Stations . | . . . . Recycling Units . | . . . . Scanalyzers . | . . . . Garrison Access . | . . . . Total Hacks . | . . . . Successful . | . . . . Failed . | . . . . Catastrophic . | . . . . Database Lockouts . | . . . . Manual . | . . . . Terminals . | . . . . Fabricators . | . . . . Repair Stations . | . . . . Recycling Units . | . . . . Scanalyzers . | . . . . Garrison Access . | . . . . Terminal Hacks . | . . . . Fabricator Hacks . | . . . . Repair Station Hacks . | . . . . Recycling Unit Hacks . | . . . . Scanalyzer . | . . . . Garrison Access Hacks . | . . . . Unauthorized Hacks . | . . . . Terminals . | . . . . Fabricators . | . . . . Repair Stations . | . . . . Recycling Units . | . . . . Scanalyzers . | . . . . Garrison Access . | . . . . Data Cores Recovered . | . . . . Used . | . . . . Hacking Detections . | . . . . Full Trace Events . | . . . . Feedback Events . | . . . . Feedback Blocked . | . . . . Robot Schematics Acquired . | . . . . Robots Built . | . . . . Authchips . | . . . . Time . | . . . . Total Robot Build Rating . | . . . . Part Schematics Acquired . | . . . . Parts Built . | . . . . Authchips . | . . . . Time . | . . . . Total Part Build Rating . | . . . . Parts Repaired . | . . . . Time . | . . . . Parts Recycled . | . . . . Recycled Matter . | . . . . Retrieved Matter . | . . . . Retrieved Components . | . . . . Parts Scanalyzed . | . . . . Part Schematics Acquired . | . . . . Parts Damaged . | . . . . Bothacking | -11 -10 -10 -9 ------------ Run | Yrd Mat Min Mat Used RIF Installer . | . . . . Robots Hacked . | . . . . Non-combat . | . . . . Combat . | . . . . Robot Hacks Applied . | . . . . Relay Couplers Released . | . . . . Fabnet Peak Effective % . | . . . . Robots Rewired . | . . . . Allies Hacked . | . . . . Hacks Repelled . | . . . . Allies | -11 -10 -10 -9 -------- Run | Yrd Mat Min Mat Total Allies . | . . . . Largest Group . | . . . . Highest-Rated Group . | . . . . Highest-Rated Ally . | . . . . Total Orders . | . . . . Ally Attacks . | . . . . Total Damage . | . . . . Kills . | . . . . Allies Corrupted . | . . . . Allies Melted . | . . . . Intel | -11 -10 -10 -9 ------- Run | Yrd Mat Min Mat Active Infowar (turns) 552 | . 34 330 188 Seismic 484 | . . 296 188 ECM 68 | . 34 34 . Robot Analysis Total . | . . . . Derelict Logs Recovered 1 | . . 1 . Drone Launches . | . . . . Drone Recoveries . | . . . . Exploration | -11 -10 -10 -9 ------------- Run | Yrd Mat Min Mat Turns Passed 657 | 45 92 332 188 Spaces Moved 536 | 41 97 298 100 Core 7 | 6 . . 1 Treads 9 | . . . 9 Legs . | . . . . Wheels 520 | 35 97 298 90 Hover . | . . . . Flight . | . . . . Fastest Speed 50 | 50 90 90 90 Average Speed 91 | 84 90 90 102 Slowest Speed 350 | 100 90 90 350 Overloaded Moves . | . . . . Propulsion Burnouts . | . . . . Robots Hopped . | . . . . Potential Cave-ins . | . . . . Cave-ins Triggered . | . . . . Exploration Rate (%) 28 | 3 23 67 19 Regions Visited 3 Branch Regions 1 Pre-discovered Areas . | . . . . Known Exits Taken . | . . . . Unknown Exits Taken 3 | 1 1 1 . Scrap Searched . | . . . . Spaces Dug . | . . . . Terrain Destroyed 36 | . . . 36 Melee . | . . . . Projectile . | . . . . AOE 36 | . . . 36 Terrain Rammed . | . . . . Walls Destroyed . | . . . . Machines Disabled . | . . . . Actions | -11 -10 -10 -9 --------- Run | Yrd Mat Min Mat Total 642 | 48 99 346 149 Wait 49 | . . 33 16 Move 533 | 40 96 297 100 Hop . | . . . . Pick Up 9 | 2 1 2 4 Fast Attach 12 | 6 1 2 3 Attach 2 | . . 1 1 Detach 3 | . . 3 . Swap 4 | . . . 4 Drop 3 | . . . 3 Fire 27 | . 1 8 18 Melee . | . . . . Ram . | . . . . Kick . | . . . . Crush . | . . . . Escape Stasis . | . . . . Rewire . | . . . . Trap . | . . . . Miscellaneous . | . . . . Route ------- -11/Scrapyard -10/Materials -10/Mines -9/Materials (discovered 1 exit: Sto) History --------- Turn | Location | Event 16 | -11/Scrapyard | Discovered new exit (range 15) 46 | -11/Scrapyard | Entered Materials 131 | -10/Materials | Discovered new exit (range 8) 138 | -10/Materials | Entered Mines 193 | -10/Mines | Found a damaged Exp. Sensor Array with a note attached 195 | -10/Mines | Found Prototype Device 195 | -10/Mines | Identified Exp. Sensor Array 313 | -10/Mines | Build established: Mutant 387 | -10/Mines | Assembled infested the area 460 | -10/Mines | Discovered new exit (range 11) 470 | -10/Mines | Entered Materials 470 | -9/Materials | Evolved 2 slots: Propulsion x1, Utility x1 471 | -9/Materials | Identified exit to Storage 658 | -9/Materials | Self-destructed Last Messages --------------- 00557_ U-05 Engineer builds a Wall. 00560_ K-01 Serf collects debris. 00573_ Critical hit (Burn: +37). 00595_ Sml. Laser melted. 00595_ G-34 Mercenary destroyed. 00605_ Com. Wheel destroyed. 00607_ Y-45 Defender destroyed. 00613_ Acquired 42 matter. 00614_ Acquired 57 matter. 00615_ Dropped Wheel. 00619_ Acquired Lgt. Treads. 00620_ Acquired 3 matter. 00630_ G-34 Mercenary suffers critical hit (Burn). 00640_ U-05 Engineer lays Concrete. 00642_ G-34 Mercenary destroyed. 00643_ U-05 Engineer lays Concrete. 00647_ R-06 Scavenger collects Aluminum Leg. 00648_ G-34 Mercenary destroyed. 00656_ U-05 Engineer lays Concrete. Map ----- +----------------------------------------------------+ | ???????????????????##! #??########## | | ???????????????????#! #??# # | | ???????????????????# #### # | | ???????????????????#! ## # | | ???????????????????#! ### [# | | ???????????????????##! ## # | | ????????????????????## * ## # | | ???????????????????#####/#* # | | ??????????????????# #*]%[ = # | | ??????????????????# """ ##%[*%! # | | ??????????????????# "" ##]] # | | ??????????????????# """ ## # | | ??????????????????# ## # | | ??????????????????# """ ## # # | | ??????????????????# """ ## # # | | ??????????????????# """ ## # # | | ??????????????????# ## # # | | ??????????????????# !!?# # # | | ??????????????????# ! ?# # # | | ??????????????????# ?# ########## | | ????????????##+#??? ??# #????????? | | ??????????? ### # ###r #????????? | | ??????????? #????????? | | ?????????? #????????? | | ?????????? [ #????????? | | ?????????? u %%%= @ * #????????? | | ??????????# * [==![ #????????? | | ??????????# ##+#######?????? | | ??????????? ##*=! #???? | | ???????????#########!!!!**##// #???? | | ???????????????????#!!!!**##// #???? | | ???????????????????#########/ #???? | | ???????????????????????????# / #???? | | ???????????????????????????# #???? | | ???????????????????????????# #???? | | ???????????????????????????# ! #???? | | ???????????????????????????###########???? | | ?????????????????????????????????????????? | | ?????????????????????????????????????????? | | ?????????????????????????????????????????? | | ?????????????????????????????????????????? | | ?????????????????????????????????????????? | | ?????????????????????????????????????????? | | ?????????????????????????????????????????? | | ?????????????????????????????????????????? | | ?????????????????????????????????????????? | | ?????????????????????????????????????????? | | ?????????????????????????????????????????? | | ?????????????????????????????????????????? | | ?????????????????????????????????????????? | +----------------------------------------------------+ Best States ------------- Heat Dissipation 28 Energy Generation 10 Energy Capacity 250 Matter Stores 300 Matter Capacity 300 Sight Range 16 Terrain Scan Density 10 ECM Strength 1 Evasion (%) 42 Recoil Reduction 1 Item Schematics ----------------- None Robot Schematics ------------------ None Fabricated ------------ Nothing Repaired ---------- Nothing Alien Tech Used ----------------- None Achievements -------------- None Challenges ------------ None Game ------ Seed MeleeFrostSpoofer Manual? 0 Play Time 00:08:57 Cumulative 52.7 hours Start 2025.07.16 @ 04:18:44 End 2025.07.16 @ 04:25:22 Sessions 1 Manual Loads 0 Difficulty Rogue Special Mode None Game No. 68 Rogue 68 Adventurer 0 Explorer 0 Win Type - Total 0 Types 0/0/0/0/0/0/0/0/0/0 Lore% 40 Gallery% 32 Achievement% 33 Wizard Run 0 Options --------- Layout 1 ASCII 0 Keyboard 0 Movement Arrows Keybinds 0 Fullscreen 1 Font 24/Smallcaps Map View 50x35 Zoom Use 0% Tactical HUD 1 Map Filters NONE Filters NONE Steam 1 RUN: c37c33af-2c4d-4dab-8997-be1e67bbcd16